bitfinex/quotes_BTCUSD_20230106
["timestamp","ask_amount","ask_price","bid_price","bid_amount"]
[1673043385201,1.91311661,16958.0,16957.0,1.18422003]
[1673043385423,1.9864298,16958.0,16957.0,1.18422003]
[1673043387280,1.3797518,16958.0,16957.0,1.18422003]
[1673043388491,1.9864298,16958.0,16957.0,1.18422003]
[1673043392210,1.9844298,16958.0,16957.0,1.17922003]
[1673043392459,1.9874298,16958.0,16957.0,1.17922003]
[1673043393333,1.63318505,16958.0,16957.0,1.17922003]
[1673043393552,2.16165987,16958.0,16957.0,1.17922003]
[1673043393974,1.63318505,16958.0,16957.0,1.17922003]
[1673043394214,2.16152222,16958.0,16957.0,1.17922003]
[1673043395625,1.63318505,16958.0,16957.0,1.17922003]
[1673043395837,2.16145207,16958.0,16957.0,1.17922003]
[1673043397134,2.16145207,16958.0,16957.0,1.17912449]
[1673043397352,2.15845207,16958.0,16957.0,1.17912449]
[1673043397564,2.16045207,16958.0,16957.0,1.18412449]
[1673043399795,1.71843525,16958.0,16957.0,1.18412449]
[1673043400015,1.71843525,16958.0,16957.0,1.28580652]
[1673043400743,0.62126803,16958.0,16957.0,1.83318492]
[1673043401241,0.62126803,16958.0,16957.0,1.53318492]
[1673043401785,1.22594603,16958.0,16957.0,1.52818492]
[1673043402276,1.22894603,16958.0,16957.0,1.52818492]
[1673043402566,1.22894603,16958.0,16957.0,1.28080652]
[1673043403271,1.22894603,16958.0,16957.0,1.27690052]
[1673043403492,1.67130429,16958.0,16957.0,1.27690052]
[1673043404530,1.22894603,16958.0,16957.0,1.27690052]
[1673043404757,1.67130429,16958.0,16957.0,1.52338832]
[1673043404999,1.22894603,16958.0,16957.0,1.52338832]
[1673043406430,1.22894603,16958.0,16957.0,1.27690052]
[1673043408963,1.22594603,16958.0,16957.0,1.27690052]
[1673043409185,1.40290371,16958.0,16957.0,1.31390052]
[1673043409465,2.12834132,16958.0,16957.0,1.31390052]
[1673043410648,1.77447387,16958.0,16957.0,1.31390052]
[1673043410894,2.12831886,16958.0,16957.0,1.31390052]
[1673043413276,2.12831886,16958.0,16957.0,1.27690052]
[1673043413497,2.13031886,16958.0,16957.0,1.28190052]
[1673043414361,2.12831886,16958.0,16957.0,1.27690052]
[1673043414668,2.12831886,16958.0,16957.0,1.31390052]
[1673043419990,1.44791937,16958.0,16957.0,1.31390052]
[1673043420240,2.05459737,16958.0,16957.0,1.31390052]
[1673043420718,1.44791937,16958.0,16957.0,1.31390052]
[1673043420933,2.05459737,16958.0,16957.0,1.27690052]
[1673043421143,2.05659737,16958.0,16957.0,1.28590052]
[1673043421415,2.05459737,16958.0,16957.0,1.27690052]
[1673043421689,2.05459737,16958.0,16957.0,1.31390052]
[1673043421940,2.12845568,16958.0,16957.0,1.31390052]
[1673043423612,2.05459737,16958.0,16957.0,1.31390052]
[1673043424043,1.44791937,16958.0,16957.0,1.31390052]
[1673043424284,2.05459737,16958.0,16957.0,1.31390052]
[1673043424530,1.44791937,16958.0,16957.0,1.31390052]
[1673043424779,2.31997018,16958.0,16957.0,1.31390052]
[1673043425035,1.27093392,16958.0,16957.0,1.31390052]
[1673043426008,1.87761192,16958.0,16957.0,1.31390052]
[1673043426248,1.27093392,16958.0,16957.0,1.31390052]
[1673043426468,2.05451281,16958.0,16957.0,1.31390052]
[1673043426715,1.44783481,16958.0,16957.0,1.31390052]
[1673043426951,2.05451281,16958.0,16957.0,1.31390052]
[1673043427188,1.87761192,16958.0,16957.0,1.31390052]
[1673043430087,1.87761192,16958.0,16957.0,1.27690052]
[1673043430322,1.87761192,16958.0,16957.0,1.38590052]
[1673043431758,1.87261192,16958.0,16957.0,1.64328832]
[1673043432523,1.26593392,16958.0,16957.0,1.64328832]
[1673043433050,1.87261192,16958.0,16957.0,1.64328832]
[1673043433556,1.26593392,16958.0,16957.0,1.64328832]
[1673043433809,1.87261192,16958.0,16957.0,1.64328832]
[1673043434077,1.26593392,16958.0,16957.0,1.64328832]
[1673043434328,1.87261192,16958.0,16957.0,1.64328832]
[1673043435342,1.87261192,16958.0,16957.0,1.38590052]
[1673043438523,2.31497018,16958.0,16957.0,1.38590052]
[1673043438768,1.87261192,16958.0,16957.0,1.38590052]
[1673043444908,1.26593392,16958.0,16957.0,1.38590052]
[1673043445898,1.87261192,16958.0,16957.0,1.38590052]
[1673043446648,1.26593392,16958.0,16957.0,1.38590052]
[1673043446898,1.26593392,16958.0,16957.0,1.64328832]
[1673043447148,1.26593392,16958.0,16957.0,1.98590052]
[1673043447408,1.44286603,16958.0,16957.0,1.98590052]
[1673043447658,1.44286596,16958.0,16957.0,1.98590052]
[1673043448034,1.26593392,16958.0,16957.0,1.98590052]
[1673043450031,1.44285888,16958.0,16957.0,1.98590052]
[1673043450288,1.26593392,16958.0,16957.0,1.98590052]
[1673043451613,1.44286238,16958.0,16957.0,1.98590052]
[1673043451858,1.26593392,16958.0,16957.0,1.98590052]
[1673043453253,1.26593392,16958.0,16957.0,1.98582882]
[1673043453817,1.70829218,16958.0,16957.0,1.98582882]
[1673043454278,1.26593392,16958.0,16957.0,1.98582882]
[1673043454663,1.44291937,16958.0,16957.0,1.98582882]
[1673043456461,1.51751313,16958.0,16957.0,1.98582882]
[1673043456679,2.12419113,16958.0,16957.0,1.98582882]
[1673043457141,1.44291937,16958.0,16957.0,1.98582882]
[1673043457644,1.26597582,16958.0,16957.0,1.98582882]
[1673043459686,1.87265382,16958.0,16957.0,1.98582882]
[1673043463913,1.26597582,16958.0,16957.0,1.98582882]
[1673043464378,1.87265382,16958.0,16957.0,1.98582882]
[1673043466938,1.69575128,16958.0,16957.0,1.98582882]
[1673043467394,2.04959627,16958.0,16957.0,1.98582882]
[1673043467643,1.26597582,16958.0,16957.0,1.98582882]
[1673043467884,1.87265382,16958.0,16957.0,1.98582882]
[1673043469944,1.87265382,16958.0,16957.0,1.9829101]
[1673043470921,1.87265382,16958.0,16957.0,1.98220225]
[1673043472865,1.26597582,16958.0,16957.0,1.98220225]
[1673043474110,1.87265382,16958.0,16957.0,1.98220225]
[1673043475296,1.26597582,16958.0,16957.0,1.98220225]
[1673043475523,1.87265382,16958.0,16957.0,1.98220225]
[1673043476264,1.26597582,16958.0,16957.0,1.98220225]
[1673043476544,1.08907408,16958.0,16957.0,1.98220225]
[1673043476796,1.87265382,16958.0,16957.0,1.98220225]
[1673043477041,1.26597582,16958.0,16957.0,1.98220225]
[1673043477268,1.87265382,16958.0,16957.0,1.98220225]
[1673043477510,1.26597582,16958.0,16957.0,1.9814944]
[1673043477763,1.87265382,16958.0,16957.0,1.98084333]
[1673043478010,1.26597582,16958.0,16957.0,1.98084333]
[1673043478225,1.87265382,16958.0,16957.0,1.98084333]
[1673043478467,1.26597582,16958.0,16957.0,1.98084333]
[1673043478972,1.87265382,16958.0,16957.0,1.98084333]
[1673043479962,1.26597582,16958.0,16957.0,1.98084333]
[1673043480224,1.87265382,16958.0,16957.0,1.98084333]
[1673043480456,2.04959737,16958.0,16957.0,1.98084333]
[1673043480703,2.12387018,16958.0,16957.0,1.98084333]
[1673043480937,2.12387018,16958.0,16957.0,1.98013549]
[1673043481915,2.12387018,16958.0,16957.0,1.97866309]
[1673043482157,2.12394461,16958.0,16957.0,1.97866309]
[1673043482638,1.51726661,16958.0,16957.0,0.78893709]
[1673043482877,1.77002519,16958.0,16957.0,0.78893709]
[1673043483168,1.69083044,16958.0,16957.0,0.78893709]
[1673043483399,2.29750844,16958.0,16957.0,0.78893709]
[1673043484213,1.16334719,16958.0,16957.0,0.78893709]
[1673043484965,1.51713749,16958.0,16957.0,0.78893709]
[1673043486201,1.5171076,16958.0,16957.0,0.78893709]
[1673043486451,1.16334719,16958.0,16957.0,0.78893709]
[1673043487188,1.51710811,16958.0,16957.0,0.78893709]
[1673043487441,2.12378611,16958.0,16957.0,0.78893709]
[1673043488736,1.51710811,16958.0,16957.0,0.78893709]
[1673043489002,2.12378611,16958.0,16957.0,0.78893709]
[1673043489227,1.51710811,16958.0,16957.0,0.78893709]
[1673043489733,2.12378611,16958.0,16957.0,0.78893709]
[1673043491279,1.51710811,16958.0,16957.0,0.78893709]
[1673043491577,1.51710811,16958.0,16957.0,0.78870218]
[1673043493304,1.4428353,16958.0,16957.0,0.78870218]
[1673043494718,0.61903575,16958.0,16957.0,1.37842818]
[1673043496099,1.22571375,16958.0,16957.0,1.37842818]
[1673043496806,1.22571375,16958.0,16957.0,0.78870218]
[1673043497452,0.61903575,16958.0,16957.0,0.78870218]
[1673043500160,1.22571375,16958.0,16957.0,0.78870218]
[1673043500420,0.61903575,16958.0,16957.0,0.78870218]
[1673043502164,1.22571375,16958.0,16957.0,0.78870218]
[1673043502422,1.66807201,16958.0,16957.0,0.78870218]
[1673043502672,1.40279718,16958.0,16957.0,0.78870218]
[1673043503155,1.66807998,16958.0,16957.0,0.78870218]
[1673043503397,1.22572172,16958.0,16957.0,0.78870218]
[1673043503638,0.61904372,16958.0,16957.0,1.37842818]
[1673043504588,1.22572172,16958.0,16957.0,1.37842818]
[1673043504807,0.61904372,16958.0,16957.0,1.37842818]
[1673043505379,0.61904372,16958.0,16957.0,0.78870218]
[1673043505599,1.22572172,16958.0,16957.0,0.78870218]
[1673043507661,1.66807998,16958.0,16957.0,0.78870218]
[1673043507930,1.40279718,16958.0,16957.0,0.78870218]
[1673043508378,1.4805455,16958.0,16957.0,0.78870218]
[1673043508603,1.40279718,16958.0,16957.0,0.78870218]
[1673043508839,1.48034508,16958.0,16957.0,0.78870218]
[1673043510129,0.87366708,16958.0,16957.0,0.78870218]
[1673043510611,1.48034508,16958.0,16957.0,0.78870218]
[1673043510797,0.87366708,16958.0,16957.0,0.78870218]
[1673043514098,1.48034508,16958.0,16957.0,0.78870218]
[1673043515331,0.87366708,16958.0,16957.0,0.78870218]
[1673043516044,1.48034508,16958.0,16957.0,0.78870218]
[1673043517535,1.12658416,16958.0,16957.0,0.78870218]
[1673043518558,1.48042482,16958.0,16957.0,0.78870218]
[1673043518798,0.87374682,16958.0,16957.0,0.78870218]
[1673043519026,1.48042482,16958.0,16957.0,0.78870218]
[1673043519238,0.51990616,16958.0,16957.0,0.78870218]
[1673043519511,1.12658416,16958.0,16957.0,0.78870218]
[1673043519753,1.12658416,16958.0,16957.0,0.78863504]
[1673043522221,0.51990616,16958.0,16957.0,0.78863504]
[1673043522452,1.12658416,16958.0,16957.0,0.78863504]
[1673043525450,1.22658416,16958.0,16957.0,0.78863504]
[1673043527409,1.22658416,16958.0,16957.0,0.68863504]
[1673043535216,1.525944,16958.0,16957.0,0.68863504]
[1673043536424,1.22658416,16958.0,16957.0,0.68863504]
[1673043536675,0.61990616,16958.0,16957.0,0.68863504]
[1673043537911,1.22658416,16958.0,16957.0,0.68863504]
[1673043538155,0.61990616,16958.0,16957.0,0.68863504]
[1673043538395,1.22658416,16958.0,16957.0,0.68863504]
[1673043541816,1.52569749,16958.0,16957.0,0.68863504]
[1673043542060,3.41186008,16958.0,16957.0,0.21068203]
[1673043542300,2.88056675,16958.0,16957.0,0.21068203]
[1673043543255,3.41148031,16958.0,16957.0,0.21068203]
[1673043549348,3.41148031,16958.0,16957.0,0.10168203]
[1673043549594,3.41148031,16958.0,16957.0,0.13868203]
[1673043551040,3.41148031,16958.0,16957.0,0.10168203]
[1673043551262,3.41448031,16958.0,16957.0,0.11168203]
[1673043551489,3.41148031,16958.0,16957.0,0.10168203]
[1673043551758,3.41448031,16958.0,16957.0,0.11261358]
[1673043552004,3.41148031,16958.0,16957.0,0.10161358]
[1673043552219,3.41448031,16958.0,16957.0,0.11261358]
[1673043569571,3.41148031,16958.0,16957.0,0.10161358]
[1673043569814,3.41448031,16958.0,16957.0,0.11261358]
[1673043572511,3.41448031,16958.0,16957.0,0.11251605]
[1673043575973,3.41448031,16958.0,16957.0,0.11051605]
[1673043575974,3.41148031,16958.0,16957.0,0.11051605]
[1673043576238,3.41148031,16958.0,16957.0,0.10151605]
[1673043576474,3.41448031,16958.0,16957.0,0.11251605]
[1673043579186,3.12170268,16958.0,16957.0,0.11251605]
[1673043579411,2.88356675,16958.0,16957.0,0.11251605]
[1673043592024,2.80237187,16958.0,16957.0,0.11251605]
[1673043592311,3.41665567,16958.0,16957.0,0.11251605]
[1673043592559,3.40590415,16958.0,16957.0,0.11251605]
[1673043592808,3.99559615,16958.0,16957.0,0.11251605]
[1673043593326,4.23373208,16958.0,16957.0,0.11245464]
[1673043595290,3.99559615,16958.0,16957.0,0.11245464]
[1673043598449,4.23373208,16958.0,16957.0,0.11245464]
[1673043601474,4.23373208,16958.0,16957.0,0.10357164]
[1673043606693,4.23373208,16958.0,16957.0,0.09257164]
[1673043606940,4.23073208,16958.0,16957.0,0.10157164]
[1673043607194,4.23373208,16958.0,16957.0,0.10157164]
[1673043607733,4.23073208,16958.0,16957.0,0.09257164]
[1673043609225,4.23373208,16958.0,16957.0,0.10357164]
[1673043612463,3.99559615,16958.0,16957.0,0.10357164]
[1673043612700,4.23373208,16958.0,16957.0,0.10357164]
[1673043613170,4.23073208,16958.0,16957.0,0.09257164]
[1673043613918,4.23373208,16958.0,16957.0,0.10157164]
[1673043614158,4.23073208,16958.0,16957.0,0.09257164]
[1673043614405,4.23373208,16958.0,16957.0,0.10357164]
[1673043614885,3.99559615,16958.0,16957.0,0.10357164]
[1673043615834,4.23373208,16958.0,16957.0,0.10357164]
[1673043616320,4.23373208,16958.0,16957.0,0.10157164]
[1673043616882,4.23073208,16958.0,16957.0,0.10357164]
[1673043617114,4.23373208,16958.0,16957.0,0.10357164]
[1673043624668,4.23373208,16958.0,16957.0,0.10157164]
[1673043624919,4.23073208,16958.0,16957.0,0.09257164]
[1673043625173,4.23373208,16958.0,16957.0,0.10357164]
[1673043625687,4.23373208,16958.0,16957.0,0.10345964]
[1673043633252,3.93461875,16958.0,16957.0,0.10345964]
[1673043633466,3.69648282,16958.0,16957.0,0.10345964]
[1673043634256,3.69348282,16958.0,16957.0,0.09245964]
[1673043634502,3.69648282,16958.0,16957.0,0.10345964]
[1673043642548,3.69348282,16958.0,16957.0,0.09245964]
[1673043642804,3.69648282,16958.0,16957.0,0.10145964]
[1673043643102,3.69348282,16958.0,16957.0,0.09245964]
[1673043643411,4.21007717,16958.0,16957.0,0.10345964]
[1673043643575,4.4482131,16958.0,16957.0,0.10345964]
[1673043646757,4.4482131,16958.0,16957.0,0.10338766]
[1673043647541,3.93461875,16958.0,16957.0,0.10338766]
[1673043647793,3.69648282,16958.0,16957.0,0.10338766]
[1673043649044,3.67949682,16958.0,16957.0,0.10338766]
[1673043649296,4.28617482,16958.0,16957.0,0.10338766]
[1673043651286,3.67949682,16958.0,16957.0,0.10338766]
[1673043651533,3.08980482,16958.0,16957.0,0.10338766]
[1673043654780,3.08909503,16958.0,16957.0,0.10338766]
[1673043656029,3.69577303,16958.0,16957.0,0.10338766]
[1673043659695,3.08909503,16958.0,16957.0,0.10338766]
[1673043660215,2.56469012,16958.0,16957.0,0.10338766]
[1673043660448,1.96701006,16958.0,16957.0,0.10338766]
[1673043660684,3.69787421,16958.0,16957.0,0.10338766]
[1673043661148,3.10019415,16958.0,16957.0,0.10338766]
[1673043661385,3.10019415,16958.0,16957.0,0.09796766]
[1673043661386,2.57368806,16958.0,16957.0,0.09796766]
[1673043661618,3.10016797,16958.0,16957.0,0.09796766]
[1673043661846,2.57368806,16958.0,16957.0,0.09796766]
[1673043662321,3.10015147,16958.0,16957.0,0.09796766]
[1673043662665,2.57368806,16958.0,16957.0,0.09796766]
[1673043663171,3.10036608,16958.0,16957.0,0.09796766]
[1673043663682,2.57368806,16958.0,16957.0,0.09796766]
[1673043664914,3.10041261,16958.0,16957.0,0.09796766]
[1673043665170,2.57368806,16958.0,16957.0,0.09796766]
[1673043665875,3.10049917,16958.0,16957.0,0.09796766]
[1673043666358,3.69817923,16958.0,16957.0,0.09796766]
[1673043667083,3.10049917,16958.0,16957.0,0.09796766]
[1673043667323,2.57368806,16958.0,16957.0,0.09796766]
[1673043668362,2.57368806,16958.0,16957.0,1.31851425]
[1673043668578,1.96701006,16958.0,16957.0,1.31851425]
[1673043669085,1.96701006,16958.0,16957.0,0.09796766]
[1673043669329,2.57368806,16958.0,16957.0,0.09796766]
[1673043670844,3.10040654,16958.0,16957.0,0.09796766]
[1673043671376,2.57368806,16958.0,16957.0,0.09796766]
[1673043671621,3.10040647,16958.0,16957.0,0.09796766]
[1673043672350,3.55519259,16958.0,16957.0,0.09796766]
[1673043672835,3.55519259,16958.0,16957.0,0.08696766]
[1673043672836,3.55219259,16958.0,16957.0,0.08696766]
[1673043673099,3.69808653,16958.0,16957.0,0.09596766]
[1673043673365,3.69808653,16958.0,16957.0,0.08696766]
[1673043673622,3.70108653,16958.0,16957.0,0.09796766]
[1673043674641,3.10340647,16958.0,16957.0,0.09796766]
[1673043675629,3.10326555,16958.0,16957.0,0.09796766]
[1673043676121,2.57668806,16958.0,16957.0,0.09796766]
[1673043677334,3.10333347,16958.0,16957.0,0.09796766]
[1673043677830,3.53459869,16958.0,16957.0,0.09796766]
[1673043678070,3.10256339,16958.0,16957.0,0.09796766]
[1673043678284,2.57597827,16958.0,16957.0,0.09796766]
[1673043678775,3.09956338,16958.0,16957.0,0.09796766]
[1673043679000,3.09656338,16958.0,16957.0,0.08696766]
[1673043679256,3.09956338,16958.0,16957.0,0.09696766]
[1673043679503,2.57297827,16958.0,16957.0,0.09696766]
[1673043679754,2.57597827,16958.0,16957.0,0.10796766]
[1673043681709,3.10252478,16958.0,16957.0,0.10796766]
[1673043681950,3.10249433,16958.0,16957.0,0.10796766]
[1673043683215,3.10249433,16958.0,16957.0,0.13234644]
[1673043683709,3.10241909,16958.0,16957.0,0.13234644]
[1673043683960,2.57590303,16958.0,16957.0,0.13234644]
[1673043684415,3.10237396,16958.0,16957.0,0.13234644]
[1673043684654,3.1024952,16958.0,16957.0,0.13234644]
[1673043684896,2.57590303,16958.0,16957.0,0.13234644]
[1673043685613,3.10246136,16958.0,16957.0,0.13234644]
[1673043685851,1.98621103,16958.0,16957.0,0.13234644]
[1673043688771,2.51270832,16958.0,16957.0,0.13234644]
[1673043689025,1.90603032,16958.0,16957.0,0.13234644]
[1673043689269,1.90003032,16958.0,16957.0,0.11134644]
[1673043689525,1.90303032,16958.0,16957.0,0.12134644]
[1673043689741,1.90303032,16958.0,16957.0,0.11134644]
[1673043690022,1.37653303,16958.0,16957.0,0.11134644]
[1673043690264,3.1072616,16958.0,16957.0,0.11134644]
[1673043690772,3.1102616,16958.0,16957.0,0.12234644]
[1673043694562,3.1102616,16958.0,16957.0,0.11134644]
[1673043694563,3.1042616,16958.0,16957.0,0.11134644]
[1673043694812,3.1072616,16958.0,16957.0,0.12134644]
[1673043695033,3.1072616,16958.0,16957.0,0.11134644]
[1673043695322,3.1102616,16958.0,16957.0,0.12234644]
[1673043697251,2.58389109,16958.0,16957.0,0.12234644]
[1673043697491,1.98621103,16958.0,16957.0,0.12234644]
[1673043698477,3.11025126,16958.0,16957.0,0.12234644]
[1673043699939,2.5125712,16958.0,16957.0,0.03537878]
[1673043700668,2.96754149,16958.0,16957.0,0.03537878]
[1673043701114,3.56522155,16958.0,16957.0,0.03537878]
[1673043701322,3.11025126,16958.0,16957.0,0.03537878]
[1673043701584,2.5125712,16958.0,16957.0,0.03537878]
[1673043701816,3.11025126,16958.0,16957.0,0.03537878]
[1673043702537,2.5125712,16958.0,16957.0,0.03537878]
[1673043703806,2.5065712,16958.0,16957.0,0.02437878]
[1673043704025,2.5065712,16958.0,16957.0,0.03337878]
[1673043704026,3.10725126,16958.0,16957.0,0.03337878]
[1673043704308,3.10425126,16958.0,16957.0,0.02427262]
[1673043704563,3.10725126,16958.0,16957.0,0.03427262]
[1673043705018,3.09725126,16958.0,16957.0,0.03427262]
[1673043705429,2.4995712,16958.0,16957.0,0.03427262]
[1673043706449,3.09725126,16958.0,16957.0,0.03427262]
[1673043707209,2.49867915,16958.0,16957.0,0.03427262]
[1673043708538,3.09635921,16958.0,16957.0,0.03427262]
[1673043710466,3.09335921,16958.0,16957.0,0.02427262]
[1673043710705,3.09635921,16958.0,16957.0,0.02927262]
[1673043711189,3.09935921,16958.0,16957.0,0.03927262]
[1673043716933,3.09935921,16958.0,16957.0,0.1264817]
[1673043725651,2.50167915,16958.0,16957.0,0.1264817]
[1673043725871,2.50086153,16958.0,16957.0,0.1264817]
[1673043726127,1.97531898,16958.0,16957.0,0.1264817]
[1673043727267,2.50096207,16958.0,16957.0,0.1264817]
[1673043727485,3.09864213,16958.0,16957.0,0.1264817]
[1673043728476,3.09264213,16958.0,16957.0,0.1114817]
[1673043728722,3.09564213,16958.0,16957.0,0.1114817]
[1673043728978,2.56999904,16958.0,16957.0,0.1114817]
[1673043729228,2.56999904,16958.0,16957.0,0.1214817]
[1673043729229,2.50113134,16958.0,16957.0,0.1214817]
[1673043729475,1.97531898,16958.0,16957.0,0.1214817]
[1673043730681,1.97531898,16958.0,16957.0,0.12137807]
[1673043731128,2.50110624,16958.0,16957.0,0.12137807]
[1673043731381,1.97531898,16958.0,16957.0,0.13352188]
[1673043731634,1.97531898,16958.0,16957.0,0.12137807]
[1673043734300,1.97531898,16958.0,16957.0,0.11137807]
[1673043734301,1.96931898,16958.0,16957.0,0.11137807]
[1673043734548,1.97231898,16958.0,16957.0,0.11637807]
[1673043734991,1.97531898,16958.0,16957.0,0.12637807]
[1673043735236,1.97531898,16958.0,16957.0,0.12137807]
[1673043735237,1.97231898,16958.0,16957.0,0.12137807]
[1673043735497,1.97531898,16958.0,16957.0,0.12637807]
[1673043735708,1.97231898,16958.0,16957.0,0.11137807]
[1673043735927,1.97531898,16958.0,16957.0,0.12137807]
[1673043736398,2.50103109,16958.0,16957.0,0.12137807]
[1673043737435,1.97531898,16958.0,16957.0,0.12137807]
[1673043738079,1.97231898,16958.0,16957.0,0.12137807]
[1673043738297,1.96931898,16958.0,16957.0,0.11137807]
[1673043738518,1.97231898,16958.0,16957.0,0.11637807]
[1673043738723,1.96931898,16958.0,16957.0,0.11137807]
[1673043738979,1.96931898,16958.0,16957.0,0.12137807]
[1673043738980,1.97231898,16958.0,16957.0,0.12137807]
[1673043739549,2.49813179,16958.0,16957.0,0.12137807]
[1673043739794,1.97231898,16958.0,16957.0,0.12137807]
[1673043740039,1.89354626,16958.0,16957.0,0.11137807]
[1673043740286,1.89654626,16958.0,16957.0,0.11137807]
[1673043740765,1.89954626,16958.0,16957.0,0.12137807]
[1673043742675,2.50622426,16958.0,16957.0,0.12137807]
[1673043743412,2.50622426,16958.0,16957.0,0.12165426]
[1673043743662,2.50622426,16958.0,16957.0,0.12137807]
[1673043745402,2.50615781,16958.0,16957.0,0.12137807]
[1673043746150,2.50615781,16958.0,16957.0,0.12165426]
[1673043746372,2.50615781,16958.0,16957.0,0.12137807]
[1673043746863,1.29594753,16958.0,16957.0,1.49616104]
[1673043747114,0.76504225,16958.0,16957.0,1.49616104]
[1673043748524,1.20718146,16958.0,16957.0,1.49616104]
[1673043748767,0.61323379,16958.0,16957.0,2.08588704]
[1673043749880,0.60723379,16958.0,16957.0,2.07588704]
[1673043750140,0.61023379,16958.0,16957.0,2.08088704]
[1673043751403,0.96084252,16958.0,16957.0,2.07588704]
[1673043752176,0.60723379,16958.0,16957.0,1.89595384]
[1673043752440,0.60723379,16958.0,16957.0,1.93395384]
[1673043752660,0.60723379,16958.0,16957.0,1.34422784]
[1673043753342,0.60723379,16958.0,16957.0,1.30622784]
[1673043753569,0.61023379,16958.0,16957.0,1.31122784]
[1673043755511,0.61023379,16958.0,16957.0,1.31150403]
[1673043755767,0.61023379,16958.0,16957.0,1.31122784]
[1673043756287,0.96380208,16958.0,16957.0,1.31122784]
[1673043756555,0.9638025,16958.0,16957.0,1.31122784]
[1673043757542,0.61023379,16958.0,16957.0,1.31122784]
[1673043758279,0.61023379,16958.0,16957.0,1.90095384]
[1673043758967,1.21691179,16958.0,16957.0,1.90095384]
[1673043759214,0.61023379,16958.0,16957.0,1.90095384]
[1673043759460,0.61023379,16958.0,16957.0,0.70610407]
[1673043759764,0.77477258,16958.0,16957.0,0.70610407]
[1673043760006,0.16809458,16958.0,16957.0,0.70610407]
[1673043761459,0.60705536,16958.0,16957.0,0.70110407]
[1673043761746,0.61005536,16958.0,16957.0,0.71110407]
[1673043761997,0.16809458,16958.0,16957.0,0.71110407]
[1673043763051,0.61005675,16958.0,16957.0,0.71110407]
[1673043763264,1.21673475,16958.0,16957.0,0.71110407]
[1673043763731,0.77477258,16958.0,16957.0,0.71110407]
[1673043764376,0.16809458,16958.0,16957.0,0.71110407]
[1673043767330,0.16509458,16958.0,16957.0,0.70110407]
[1673043767575,0.16809458,16958.0,16957.0,0.71010407]
[1673043767794,0.77477258,16958.0,16957.0,0.71010407]
[1673043768701,1.30567786,16958.0,16957.0,0.71010407]
[1673043768920,0.77477258,16958.0,16957.0,0.71010407]
[1673043770105,0.77477258,16958.0,16957.0,0.70999018]
[1673043772238,0.77477258,16958.0,16957.0,0.70099018]
[1673043772488,0.77177258,16958.0,16957.0,0.70099018]
[1673043772762,0.77477258,16958.0,16957.0,0.71099018]
[1673043773917,0.77477258,16958.0,16957.0,0.70099018]
[1673043774139,0.77177258,16958.0,16957.0,0.70099018]
[1673043774862,0.77477258,16958.0,16957.0,0.71099018]
[1673043776312,1.30567786,16958.0,16957.0,0.71099018]
[1673043776782,0.16809458,16958.0,16957.0,1.30071618]
[1673043777036,0.16809458,16958.0,16957.0,0.71099018]
[1673043777254,0.16809458,16958.0,16957.0,1.30071618]
[1673043779394,0.61038424,16958.0,16957.0,2.00465137]
[1673043779618,1.22957677,16958.0,16957.0,2.30465137]
[1673043779857,0.72219253,16958.0,16957.0,2.00465137]
[1673043780076,0.72219253,16958.0,16957.0,1.99465137]
[1673043780355,0.72219253,16958.0,16957.0,1.99965137]
[1673043780854,0.89610381,16958.0,16957.0,1.99465137]
[1673043781075,0.5422787,16958.0,16957.0,2.36829071]
[1673043781606,0.5422787,16958.0,16957.0,2.06829071]
[1673043782091,0.71919253,16958.0,16957.0,2.06829071]
[1673043782357,0.54220973,16958.0,16957.0,2.06829071]
[1673043782591,0.54220973,16958.0,16957.0,2.36829071]
[1673043783377,0.54220973,16958.0,16957.0,2.11304002]
[1673043784653,0.54220973,16958.0,16957.0,1.81304002]
[1673043784892,0.54220973,16958.0,16957.0,1.73940068]
[1673043785142,0.54520973,16958.0,16957.0,1.74440068]
[1673043785394,0.54220973,16958.0,16957.0,1.73940068]
[1673043785636,0.27684231,16958.0,16957.0,2.44795245]
[1673043786151,0.54220973,16958.0,16957.0,2.44795245]
[1673043786401,0.27684231,16958.0,16957.0,2.44795245]
[1673043786931,0.27684231,16958.0,16957.0,1.84940068]
[1673043787206,0.54220973,16958.0,16957.0,1.84940068]
[1673043787467,0.71919253,16958.0,16957.0,1.84940068]
[1673043788266,1.16148219,16958.0,16957.0,1.84940068]
[1673043788500,0.71919253,16958.0,16957.0,1.84940068]
[1673043789692,0.71919253,16958.0,16957.0,1.73940068]
[1673043789933,0.71919253,16958.0,16957.0,1.77740068]
[1673043790912,0.71919253,16958.0,16957.0,1.73940068]
[1673043791163,0.72219253,16958.0,16957.0,1.74940068]
[1673043791386,0.103,16958.0,16957.0,2.27231965]
[1673043791893,0.106,16958.0,16957.0,2.27731965]
[1673043792622,0.1,16958.0,16957.0,2.27231965]
[1673043793118,0.1,16958.0,16957.0,2.38231965]
[1673043796624,0.095,16958.0,16957.0,2.38231965]
[1673043798657,0.095,16958.0,16957.0,1.93363515]
[1673043798910,0.0219587,16959.0,16957.0,3.86308067]
[1673043799161,0.0219587,16959.0,16958.0,1.34031025]
[1673043799415,0.0219587,16959.0,16958.0,3.10938625]
[1673043800148,0.0219587,16959.0,16958.0,3.96833173]
[1673043800421,0.0219587,16959.0,16958.0,3.79206479]
[1673043800658,0.0249587,16959.0,16958.0,3.82770413]
[1673043801178,0.0249587,16959.0,16958.0,3.25585713]
[1673043803929,0.0249587,16959.0,16958.0,3.24585713]
[1673043807121,0.02486908,16959.0,16958.0,3.24585713]
[1673043807647,0.02486908,16959.0,16958.0,3.42212407]
[1673043808364,0.02486908,16959.0,16958.0,3.24585713]
[1673043808622,0.02486908,16959.0,16958.0,3.42212407]
[1673043808882,0.02486908,16959.0,16958.0,3.24585713]
[1673043809447,0.02486908,16959.0,16958.0,3.42212407]
[1673043809919,0.02486908,16959.0,16958.0,4.12212407]
[1673043810436,0.02486908,16959.0,16958.0,3.94585713]
[1673043810687,0.02486908,16959.0,16958.0,4.12212407]
[1673043811921,0.02486908,16959.0,16958.0,3.94585713]
[1673043813448,0.02486908,16959.0,16958.0,4.12212407]
[1673043813935,0.02486908,16959.0,16958.0,4.13062407]
[1673043816152,0.02486908,16959.0,16958.0,2.36154807]
[1673043816384,0.02486908,16959.0,16958.0,4.73062407]
[1673043817380,0.02486908,16959.0,16958.0,5.78355407]
[1673043817628,0.02486908,16959.0,16958.0,4.29502448]
[1673043817891,0.02486908,16959.0,16958.0,4.03062407]
[1673043818404,0.02486908,16959.0,16958.0,4.29502448]
[1673043818663,0.02486908,16959.0,16958.0,4.99502448]
[1673043818909,0.02486908,16959.0,16958.0,5.78369168]
[1673043820460,0.02486908,16959.0,16958.0,6.07853168]
[1673043821170,0.02486908,16959.0,16958.0,7.07853168]
[1673043821382,0.02486908,16959.0,16958.0,6.07853168]
[1673043821649,0.02186908,16959.0,16958.0,7.07853168]
[1673043821872,0.02186908,16959.0,16958.0,7.11653168]
[1673043822155,0.02186908,16959.0,16958.0,6.46948645]
[1673043822410,0.02186908,16959.0,16958.0,4.16862407]
[1673043823187,0.02186908,16959.0,16958.0,3.46862407]
[1673043823412,0.02186908,16959.0,16958.0,3.73302448]
[1673043823656,0.02186908,16959.0,16958.0,4.52194558]